[Event "NED Team Cup 2018"]
[Site "Apeldoorn"]
[Date "2018.05.10"]
[Round "1"]
[White "Van Wessel, Rudy"]
[Black "Wantola, Ivo"]
[Result "1/2-1/2"]
[ECO "D38"]
[WhiteElo "2402"]
[BlackElo "2319"]
[Annotator "ChessBase"]
[PlyCount "97"]
[EventDate "2018.??.??"]
[EventCountry "NED"]
[SourceTitle "playchess.com"]
[Source "ChessBase"]
[SourceQuality "1"]
[TimeControl "6600+5"]

1. d4 {[%emt 0:00:03]} Nf6 {[%emt 0:00:06]} 2. Nf3 {[%emt 0:00:07]} e6 {[%emt 0:00:06]} 3. c4 {[%emt 0:00:43]} Bb4+ {[%emt 0:00:29]} 4. Nc3 {[%emt 0:01:23]} d5 {[%emt 0:01:56]} 5. cxd5 {[%emt 0:06:38]} exd5 {[%emt 0:00:42]} 6. Bg5 {[%emt 0:00:44]} O-O {[%emt 0:03:03]} 7. Rc1 {[%emt 0:04:48]} h6 {[%emt 0:02:48]} 8. Bxf6 {[%emt 0:03:54]} Qxf6 {[%emt 0:00:06]} 9. a3 {[%emt 0:03:17]} Bxc3+ {[%emt 0:00:14]} 10. Rxc3 {[%emt 0:00:03]} c6 {[%emt 0:00:16]} 11. e3 {[%emt 0:00:50]} Bg4 {[%emt 0:03:28]} 12. Qb3 {[%emt 0:14:07]} Nd7 {[%emt 0:06:56]} 13. Qxb7 {[%emt 0:05:45]} Rab8 {[%emt 0:01:03]} 14. Qxc6 {[%emt 0:00:22]} Rxb2 {[%emt 0:00:36]} 15. Bd3 {[%emt 0:00:04]} Qxc6 {[%emt 0:05:37]} 16. Rxc6 {[%emt 0:00:45]} Rb3 {[%emt 0:02:37]} 17. Kd2 {[%emt 0:03:54]} Bxf3 {[%emt 0:00:24]} 18. gxf3 {[%emt 0:00:08]} Rxa3 {[%emt 0:00:10]} 19. Rhc1 {[%emt 0:02:03]} Nb6 {[%emt 0:00:57]} 20. R1c2 {[%emt 0:13:59]} Rd8 {[%emt 0:00:55]} 21. f4 {[%emt 0:02:38]} Kf8 {[%emt 0:00:34]} 22. Rc7 {[%emt 0:00:17]} Rd7 {[%emt 0:04:31]} 23. Ke2 {[%emt 0:14:47]} Ra2 {[%emt 0:02:47]} 24. R7c5 {[%emt 0:04:01]} Rxc2+ {[%emt 0:00:34]} 25. Rxc2 {[%emt 0:00:39]} Ke7 {[%emt 0:02:36]} 26. Bb5 {[%emt 0:00:28]} Rb7 {[%emt 0:00:13]} 27. Rc5 {[%emt 0:07:39]} Kd6 {[%emt 0:06:26]} 28. Rc6+ {[%emt 0:00:47]} Ke7 {[%emt 0:00:06]} 29. Kd3 {[%emt 0:04:14]} Nd7 {[%emt 0:02:32]} 30. Ba4 {[%emt 0:00:12]} Nb6 {[%emt 0:08:09]} 31. Bb3 {[%emt 0:00:01]} a5 {[%emt 0:04:46]} 32. Rc5 {[%emt 0:04:13]} Nd7 {[%emt 0:00:22]} 33. Rc3 {[%emt 0:00:18]} Nb6 {[%emt 0:01:58]} 34. f3 {[%emt 0:00:20]} f5 {[%emt 0:02:55]} 35. Rc6 {[%emt 0:00:01]} a4 {[%emt 0:01:57]} 36. Ba2 {[%emt 0:00:09]} a3 {[%emt 0:00:55]} 37. h4 {[%emt 0:02:12]} Kd7 {[%emt 0:03:25]} 38. Rg6 {[%emt 0:00:46]} Kc8 {[%emt 0:00:47]} 39. Rc6+ {[%emt 0:01:50]} Kd7 {[%emt 0:00:10]} 40. Rg6 {[%emt 0:00:28]} Kc8 {[%emt 0:00:05]} 41. Rc6+ {[%emt 0:00:46]} Kd7 {[%emt 0:00:11]} 42. Rc3 {[%emt 0:00:25]} Ra7 {[%emt 0:00:18]} 43. Rc5 {[%emt 0:00:13]} Kd6 {[%emt 0:00:41]} 44. Rc1 {[%emt 0:00:23]} Nc4 {[%emt 0:01:59]} 45. Rg1 {[%emt 0:00:09]} Re7 {[%emt 0:04:15]} 46. Re1 {[%emt 0:00:00]} Rc7 {[%emt 0:00:35]} 47. Rg1 {[%emt 0:00:11]} Ke6 {[%emt 0:04:50]} 48. Rg6+ {[%emt 0:00:05]} Kf7 49. Ra6 1/2-1/2

[Event "NED Team Cup 2018"]
[Site "Apeldoorn"]
[Date "2018.05.10"]
[Round "1"]
[White "Wessel, Rudy van"]
[Black "Wantola, Ivo"]
[Result "*"]
[ECO "D38"]
[WhiteElo "2402"]
[BlackElo "2319"]
[Annotator "NA"]
[PlyCount "97"]
[EventDate "2018.??.??"]
[EventCountry "NED"]
[SourceTitle "playchess.com"]
[Source "ChessBase"]
[SourceQuality "1"]
[TimeControl "6600+5"]

{[%evp 8,69,28,19,17,17,32767,32767,32767,32767,32767,32767,32767,32767,32767,32767,2,0,12,0,32767,32767,32767,32767,16,12,69,32767,32767,32767,32767,95,94,104,103,103,101,89,96,19,109,108,94,91,93,101,89,95,87,97,106,62,64,45,52,18,35,39,37,34,19,16,40,13]} 1. d4 {[%emt 0:00:03]} Nf6 {[%emt 0:00:06]} 2. Nf3 {[%emt 0:00:07]} e6 {[%emt 0:00:06]} 3. c4 {[%emt 0:00:43]} Bb4+ {[%emt 0:00:29]} 4. Nc3 {[%emt 0:01:23]} d5 {[%emt 0:01:56]} 5. cxd5 {[%emt 0:06:38]} exd5 {[%emt 0:00:42]} 6. Bg5 {[%emt 0:00:44]} O-O {[%emt 0:03:03]} 7. Rc1 {[%emt 0:04:48]} h6 {[%emt 0:02:48]} 8. Bxf6 {[%emt 0:03:54]} Qxf6 {[%emt 0:00:06]} 9. a3 {[%emt 0:03:17]} Bxc3+ {[%emt 0:00:14]} 10. Rxc3 {[%emt 0:00:03]} c6 {[%emt 0:00:16]} 11. e3 {[%emt 0:00:50]} Bg4 {[%emt 0:03:28] LiveBook: 13 Games D38: Queen's Gambit Declined: Ragozin Defence (4 Nf3 Bb4)} 12. Qb3 {[%emt 0:14:07]} Nd7 {[%emt 0:06:56]} 13. Qxb7 {[%emt 0:05:45]} Rab8 {[%emt 0:01:03]} 14. Qxc6 {[%emt 0:00:22]} Rxb2 {[%emt 0:00:36]} 15. Bd3 {[%emt 0:00:04]} Qxc6 {[%emt 0:05:37]} 16. Rxc6 {[%emt 0:00:45] [#]} Rb3 $146 {[%emt 0:02:37]} ({Better is Predecessor:} 16... Rfb8 $11 17. O-O R2b3 18. Ba6 Rxa3 19. Bc8 {½-½ (44) Bu,X (2644)-Jakovenko,D (2691) Wijk aan Zee 2007}) 17. Kd2 {[%emt 0:03:54]} Bxf3 {[%emt 0:00:24]} 18. gxf3 {[%emt 0:00:08]} Rxa3 {[%emt 0:00:10]} 19. Rhc1 {[%emt 0:02:03]} Nb6 {[%emt 0:00:57]} 20. R1c2 {[%emt 0:13:59]} Rd8 {[%emt 0:00:55]} 21. f4 {[%emt 0:02:38]} Kf8 {[%emt 0:00:34]} 22. Rc7 {[%emt 0:00:17]} Rd7 {[%emt 0:04:31]} 23. Ke2 {[%emt 0:14:47]} ({White should play} 23. R7c5 $16) 23... Ra2 {[%emt 0:02:47]} ({Black should try} 23... Rxc7 $14 24. Rxc7 a5) 24. R7c5 {[%emt 0:04:01]} Rxc2+ {[%emt 0:00:34]} 25. Rxc2 {[%emt 0:00:39]} Ke7 {[%emt 0:02:36]} 26. Bb5 {[%emt 0:00:28]} Rb7 {[%emt 0:00:13]} 27. Rc5 {[%emt 0:07:39]} Kd6 {[%emt 0:06:26]} 28. Rc6+ {[%emt 0:00:47]} Ke7 {[%emt 0:00:06]} 29. Kd3 {[%emt 0:04:14]} Nd7 {[%emt 0:02:32]} 30. Ba4 {[%emt 0:00:12]} Nb6 {[%emt 0:08:09]} 31. Bb3 {[%emt 0:00:01]} a5 {[%emt 0:04:46]} 32. Rc5 {[%emt 0:04:13]} Nd7 {[%emt 0:00:22]} 33. Rc3 {[%emt 0:00:18]} Nb6 {[%emt 0:01:58]} 34. f3 {[%emt 0:00:20]} f5 {[%emt 0:02:55]} 35. Rc6 $11 {[%emt 0:00:01]} a4 {[%emt 0:01:57]} 36. Ba2 {[%emt 0:00:09]} a3 {[%emt 0:00:55]} 37. h4 {[%emt 0:02:12]} Kd7 {[%emt 0:03:25]} 38. Rg6 {[%emt 0:00:46]} Kc8 {[%emt 0:00:47]} 39. Rc6+ {[%emt 0:01:50]} Kd7 {[%emt 0:00:10]} 40. Rg6 {[%emt 0:00:28]} Kc8 {[%emt 0:00:05]} 41. Rc6+ {[%emt 0:00:46]} Kd7 {[%emt 0:00:11]} 42. Rc3 {[%emt 0:00:25]} Ra7 {[%emt 0:00:18]} 43. Rc5 {[%emt 0:00:13]} Kd6 {[%emt 0:00:41]} 44. Rc1 {[%emt 0:00:23]} Nc4 {[%emt 0:01:59]} 45. Rg1 {[%emt 0:00:09]} Re7 {[%emt 0:04:15]} 46. Re1 {[%emt 0:00:00]} Rc7 {[%emt 0:00:35]} 47. Rg1 {[%emt 0:00:11]} Ke6 {[%emt 0:04:50]} 48. Rg6+ {[%emt 0:00:05]} Kf7 49. Ra6 *

[Event "NED Team Cup 2018"]
[Site "Apeldoorn"]
[Date "2018.05.10"]
[Round "1"]
[White "Braun, Christian"]
[Black "Werf, Mark van der"]
[Result "1-0"]
[ECO "C55"]
[WhiteElo "2385"]
[BlackElo "2404"]
[Annotator "NA"]
[PlyCount "153"]
[EventDate "2018.??.??"]
[EventCountry "NED"]
[SourceTitle "playchess.com"]
[Source "ChessBase"]
[SourceQuality "1"]
[TimeControl "6600+5"]

1. e4 {[%emt 0:00:09]} e5 {[%emt 0:00:11]} 2. Nf3 {[%emt 0:00:08]} Nc6 {[%emt 0:00:03]} 3. Bc4 {[%emt 0:00:14]} Nf6 {[%emt 0:00:04]} 4. d3 {[%emt 0:00:06]} Be7 {[%emt 0:00:04]} 5. Nc3 {[%emt 0:00:07]} d6 {[%emt 0:00:52]} 6. a3 {[%emt 0:00:12]} O-O {[%emt 0:01:12]} 7. h3 {[%emt 0:00:04]} Be6 {[%emt 0:02:58] LiveBook: 39 Games} 8. Nd5 {[%emt 0:00:06] C55: Two Knights: 4 d3, 4 d4 exd4 5 e5 and Max Lange Attack} Qd7 {[%emt 0:04:56]} 9. O-O {[%emt 0:08:50]} Bd8 {[%emt 0:03:20]} 10. Re1 $146 {[%emt 0:06:00]} ({Predecessor:} 10. Bg5 Ne8 11. Ne3 f6 12. Bxe6+ Qxe6 13. Bh4 Ne7 14. d4 c6 15. Re1 Bb6 16. c3 {½-½ (69) Kayumov,S (2435)-Obukhov,A (2481) Alushta 2006}) 10... Bxd5 {[%emt 0:06:36]} 11. exd5 {[%emt 0:00:07]} Ne7 {[%emt 0:00:03]} 12. d4 {[%emt 0:00:07]} e4 {[%emt 0:01:22]} 13. Ng5 {[%emt 0:00:53]} Qf5 {[%emt 0:05:10]} (13... c6 $11 14. Nxe4 Nxe4 15. Rxe4 cxd5 16. Rxe7 Bxe7 17. Bxd5 Bf6) 14. Qe2 {[%emt 0:05:58]} (14. g4 $1 $14 Qc8 15. Nxe4 Nxe4 16. Rxe4) 14... Nexd5 {[%emt 0:01:29]} 15. Nxe4 {[%emt 0:00:16]} Nxe4 {[%emt 0:00:20]} 16. Qxe4 {[%emt 0:00:07]} Qxe4 {[%emt 0:03:22]} 17. Rxe4 {[%emt 0:00:07]} Nb6 {[%emt 0:00:12]} 18. Bd3 {[%emt 0:01:34]} Bf6 {[%emt 0:00:28]} 19. c3 {[%emt 0:00:15]} d5 {[%emt 0:05:36]} 20. Re2 {[%emt 0:00:19]} Rfe8 {[%emt 0:00:11]} 21. a4 {[%emt 0:01:00]} Rxe2 {[%emt 0:04:20]} 22. Bxe2 {[%emt 0:00:14]} Re8 {[%emt 0:00:08]} 23. Kf1 {[%emt 0:00:14]} a5 {[%emt 0:04:29]} 24. Bf4 {[%emt 0:03:20]} c6 {[%emt 0:05:41]} 25. b3 {[%emt 0:06:17]} Bd8 {[%emt 0:02:44]} 26. Bg4 {[%emt 0:03:46]} g6 {[%emt 0:00:46]} 27. Bd6 {[%emt 0:01:57]} h5 {[%emt 0:01:13]} 28. Be2 {[%emt 0:00:22]} Nd7 {[%emt 0:03:15]} 29. g4 {[%emt 0:02:27]} hxg4 {[%emt 0:02:06]} 30. hxg4 {[%emt 0:00:37]} Nf6 {[%emt 0:05:51]} 31. f3 {[%emt 0:02:03]} Be7 {[%emt 0:02:59]} 32. Be5 {[%emt 0:01:30]} Nh7 {[%emt 0:02:28]} 33. Bd3 {[%emt 0:01:15]} Bf6 {[%emt 0:01:43]} 34. Bxf6 {[%emt 0:23:02]} Nxf6 {[%emt 0:00:10]} 35. Kf2 {[%emt 0:00:05]} Re7 {[%emt 0:01:33]} 36. b4 {[%emt 0:00:45]} axb4 {[%emt 0:02:15]} 37. cxb4 {[%emt 0:01:25]} Ne8 {[%emt 0:02:39]} 38. a5 {[%emt 0:00:33]} Nc7 {[%emt 0:01:11]} 39. b5 {[%emt 0:04:25]} cxb5 {[%emt 0:01:46]} 40. Rb1 {[%emt 0:00:07]} Re8 {[%emt 0:00:59]} 41. Bxb5 {[%emt 0:01:19]} Ra8 {[%emt 0:00:16]} 42. Bd7 {[%emt 0:00:27]} Ra7 {[%emt 0:00:51]} 43. Rc1 $11 {[%emt 0:00:57]} Na6 {[%emt 0:01:14]} 44. Rc8+ {[%emt 0:07:28]} Kg7 {[%emt 0:00:05]} 45. Be8 {[%emt 0:00:27]} Kf6 {[%emt 0:00:38]} 46. Kg3 {[%emt 0:02:09]} Ke7 {[%emt 0:01:29]} 47. Bb5 {[%emt 0:04:05]} Nb4 {[%emt 0:01:54]} 48. Rc7+ {[%emt 0:00:07]} Kf8 {[%emt 0:00:08]} 49. Kf4 {[%emt 0:00:47]} Rxa5 {[%emt 0:02:16]} 50. Rxb7 {[%emt 0:00:03]} Ra1 {[%emt 0:00:48]} 51. Kg5 {[%emt 0:02:30]} Re1 {[%emt 0:00:31]} 52. Bd7 {[%emt 0:00:28]} Nc2 {[%emt 0:02:47]} 53. Kf6 {[%emt 0:00:55]} Kg8 {[%emt 0:00:08]} 54. Rb8+ {[%emt 0:00:32]} Kh7 {[%emt 0:00:04]} 55. Rf8 {[%emt 0:00:51]} Nxd4 {[%emt 0:01:48]} 56. Rxf7+ {[%emt 0:00:09]} Kg8 {[%emt 0:01:34]} 57. Kxg6 {[%emt 0:01:07]} Ra1 {[%emt 0:01:05]} 58. Rf6 {[%emt 0:03:33]} Ra7 {[%emt 0:01:42]} 59. Be6+ {[%emt 0:00:07]} Nxe6 {[%emt 0:00:04]} 60. Rxe6 {[%emt 0:00:03]} Rg7+ {[%emt 0:00:57]} 61. Kh5 {[%emt 0:00:17]} d4 {[%emt 0:00:21]} 62. Kh4 {[%emt 0:02:10]} Rd7 {[%emt 0:00:12]} 63. Re2 {[%emt 0:00:30]} Kg7 {[%emt 0:00:23]} 64. Kg5 {[%emt 0:00:29]} Rd5+ {[%emt 0:00:52]} 65. Kf4 {[%emt 0:00:11]} Kf6 {[%emt 0:00:15]} 66. Rd2 {[%emt 0:00:04]} Rd8 {[%emt 0:00:37]} 67. Ra2 {[%emt 0:00:47]} Rd6 {[%emt 0:01:15]} 68. Rd2 {[%emt 0:00:57]} Rd8 {[%emt 0:00:12]} 69. Rd3 {[%emt 0:00:16]} Rd7 {[%emt 0:00:19]} 70. Ke4 {[%emt 0:00:11]} Kg5 {[%emt 0:00:02]} 71. Rxd4 {[%emt 0:00:09]} Re7+ {[%emt 0:00:04]} 72. Kd3 {[%emt 0:00:04]} Kh4 {[%emt 0:00:15]} 73. Re4 {[%emt 0:00:19]} Rf7 {[%emt 0:00:01]} 74. Ke2 {[%emt 0:00:19]} Kg3 {[%emt 0:00:04]} 75. g5 {[%emt 0:00:05]} Rg7 {[%emt 0:00:52]} 76. Rg4+ {[%emt 0:00:06]} Kh3 {[%emt 0:00:03]} 77. g6 {[%emt 0:00:06]} 1-0

[Event "NED Team Cup 2018"]
[Site "Apeldoorn"]
[Date "2018.05.10"]
[Round "1"]
[White "Zwirs, Nico"]
[Black "Bos, Jokim van den"]
[Result "1-0"]
[ECO "B99"]
[WhiteElo "2379"]
[BlackElo "1936"]
[Annotator "NA"]
[PlyCount "57"]
[EventDate "2018.??.??"]
[EventCountry "NED"]
[SourceTitle "playchess.com"]
[Source "ChessBase"]
[SourceQuality "1"]
[TimeControl "6600+5"]

{[%evp 10,41,30,17,26,18,43,51,32767,32767,32767,32767,32767,32767,72,55,132,88,115,92,106,125,135,120,117,112,228,245,346,442,567,527,764,1099]} 1. e4 {[%emt 0:00:03]} c5 {[%emt 0:00:21]} 2. Nf3 {[%emt 0:00:05]} d6 {[%emt 0:00:22]} 3. Nc3 {[%emt 0:00:01]} Nf6 {[%emt 0:00:17]} 4. d4 {[%emt 0:00:02]} cxd4 {[%emt 0:00:07]} 5. Nxd4 {[%emt 0:00:02]} a6 {[%emt 0:00:09]} 6. Bg5 {[%emt 0:01:13]} e6 {[%emt 0:00:33]} 7. f4 {[%emt 0:00:39]} Be7 {[%emt 0:04:31]} 8. Qf3 {[%emt 0:02:18]} h6 {[%emt 0:05:52]} 9. Bh4 {[%emt 0:01:04]} Qc7 {[%emt 0:00:54]} 10. O-O-O {[%emt 0:00:16]} Nbd7 {[%emt 0:02:41]} 11. Be2 {[%emt 0:05:41]} b5 {[%emt 0:19:34]} 12. Bxf6 {[%emt 0:00:31] B99: Sicilian Najdorf: 6 Bg5 e6 7 f4 Be7 8 Qf3 Qc7 9 0-0-0 Nbd7} gxf6 {[%emt 0:02:34] LiveBook: 5 Games} ({Black should play} 12... Nxf6 $14 13. e5 Bb7 14. exf6 (14. Qg3 dxe5 15. fxe5 Nd7 $11 (15... Nd5 16. Nxe6 fxe6 17. Qg6+ Kd7 18. Bg4 Qxe5 19. Nxd5 Qg5+ 20. Qxg5 Bxg5+ {½-½ (67) Robson,R (2583)-Le,Q (2717) Lubbock 2011})) 14... Bxf3 15. Bxf3 Rc8 16. Bc6+ Kf8 17. fxe7+ Qxe7) 13. Qh5 {[%emt 0:02:03]} Nc5 {[%emt 0:03:32]} 14. a3 {[%emt 0:09:07]} Bb7 {[%emt 0:02:25]} 15. Bg4 {[%emt 0:06:00]} Kf8 {[%emt 0:05:38]} 16. Rhe1 {[%emt 0:01:55]} Rh7 $146 {[%emt 0:12:02]} ({Predecessor:} 16... Bd8 17. Kb1 Qe7 18. Qh3 Bb6 19. e5 dxe5 20. fxe5 {1-0 (33) Kapnisis,S (2455)-Kang,C (2327) Paleochora 2014}) 17. Kb1 {[%emt 0:06:35]} Rc8 {[%emt 0:04:37]} (17... Re8 $16) 18. Re3 {[%emt 0:05:52]} Kg8 {[%emt 0:09:09] [#]} (18... d5 $142) 19. Nd5 $1 {[%emt 0:16:57]} exd5 {[%emt 0:09:05]} 20. exd5 {[%emt 0:00:07]} Kh8 {[%emt 0:15:16]} 21. Rde1 $18 {[%emt 0:05:08]} Bf8 {[%emt 0:09:13]} 22. Bxc8 {[%emt 0:00:19]} Bxc8 {[%emt 0:00:05]} 23. Re8 {[%emt 0:00:12]} Nd7 {[%emt 0:00:05]} 24. Ne6 {[%emt 0:01:19]} fxe6 {[%emt 0:00:34]} 25. dxe6 {[%emt 0:00:05]} Kg8 {[%emt 0:01:02]} 26. e7 {[%emt 0:01:59]} Bb7 {[%emt 0:01:25]} 27. Qg6+ {[%emt 0:00:14]} Kh8 {[%emt 0:00:06]} 28. Rxf8+ {[%emt 0:00:09]} Nxf8 {[%emt 0:00:02]} 29. exf8=Q# {[%emt 0:00:06]} 1-0

[Event "NED Team Cup 2018"]
[Site "Apeldoorn"]
[Date "2018.05.10"]
[Round "1"]
[White "Monsma, Menno"]
[Black "Delft, Merijn van"]
[Result "0-1"]
[ECO "B13"]
[WhiteElo "2037"]
[BlackElo "2396"]
[Annotator "NA"]
[PlyCount "100"]
[EventDate "2018.??.??"]
[EventCountry "NED"]
[SourceTitle "playchess.com"]
[Source "ChessBase"]
[SourceQuality "1"]
[TimeControl "6600+5"]

1. c4 {[%emt 0:00:02]} c6 {[%emt 0:00:06]} 2. e4 {[%emt 0:00:32]} d5 {[%emt 0:00:05]} 3. exd5 {[%emt 0:00:25]} cxd5 {[%emt 0:00:06]} 4. d4 {[%emt 0:00:10]} Nf6 {[%emt 0:00:15]} 5. Nc3 {[%emt 0:00:15]} Nc6 {[%emt 0:00:21]} 6. Bg5 {[%emt 0:07:17]} Ne4 {[%emt 0:01:10]} 7. cxd5 {[%emt 0:14:46] B13: Caro-Kann: Exchange Variation and Panov-Botvinnik Attack} Nxc3 {[%emt 0:01:14]} 8. bxc3 {[%emt 0:00:17]} Qxd5 {[%emt 0:00:21]} 9. Nf3 {[%emt 0:05:32]} Bg4 {[%emt 0:04:39]} 10. Be3 {[%emt 0:07:19] LiveBook: 4 Games} e6 {[%emt 0:05:27]} 11. Be2 {[%emt 0:02:06]} Bd6 $146 {[%emt 0:01:34]} ({Predecessor:} 11... Be7 12. O-O O-O 13. h3 Bxf3 14. Bxf3 Qd7 {1-0 (35) Lagno,K (2523)-Muzychuk,A (2534) Reykjavik 2015}) 12. h3 {[%emt 0:05:24]} Bh5 {[%emt 0:01:08]} 13. O-O {[%emt 0:00:26]} O-O {[%emt 0:00:52]} 14. Rb1 {[%emt 0:11:16]} Qxa2 {[%emt 0:06:37]} 15. Rxb7 {[%emt 0:02:37]} Rab8 {[%emt 0:02:03]} 16. Rxb8 {[%emt 0:14:58]} Rxb8 {[%emt 0:00:30]} 17. Bd3 {[%emt 0:03:01]} Bg6 {[%emt 0:04:13]} 18. Bxg6 {[%emt 0:04:26]} hxg6 {[%emt 0:00:57]} 19. Ng5 {[%emt 0:00:37]} f6 {[%emt 0:07:34]} 20. Ne4 {[%emt 0:03:09]} Be7 {[%emt 0:02:56]} 21. Nd2 {[%emt 0:00:23]} a5 {[%emt 0:06:37]} 22. c4 {[%emt 0:01:42]} (22. Qe2 $11) 22... Rd8 {[%emt 0:04:59]} 23. Qa1 $1 {[%emt 0:04:16]} Qxa1 {[%emt 0:13:15]} 24. Rxa1 {[%emt 0:00:02]} Nxd4 {[%emt 0:00:19]} 25. Rxa5 {[%emt 0:01:45]} Nf5 {[%emt 0:01:41]} 26. Nf1 {[%emt 0:02:48]} Rd1 {[%emt 0:05:08]} 27. Ba7 $17 {[%emt 0:02:07]} Rc1 {[%emt 0:04:49]} 28. Ra4 {[%emt 0:01:02]} Kf7 {[%emt 0:02:21]} 29. Be3 {[%emt 0:03:19]} Nxe3 {[%emt 0:04:50]} 30. fxe3 {[%emt 0:00:03]} Rc2 {[%emt 0:00:25]} 31. Ra1 {[%emt 0:02:16]} f5 {[%emt 0:02:12]} 32. Rd1 {[%emt 0:00:19]} Bc5 {[%emt 0:02:28]} 33. Kh2 {[%emt 0:00:12]} Rxc4 {[%emt 0:03:35]} 34. Kg3 {[%emt 0:00:26]} g5 {[%emt 0:00:54]} 35. Kf3 {[%emt 0:01:30]} Kf6 {[%emt 0:00:50]} 36. Rd3 {[%emt 0:00:36]} e5 {[%emt 0:01:32]} 37. Rd2 {[%emt 0:00:17]} e4+ {[%emt 0:05:20]} 38. Ke2 {[%emt 0:00:34]} f4 {[%emt 0:00:16]} 39. Ra2 {[%emt 0:00:18]} Rc3 {[%emt 0:01:13]} 40. exf4 {[%emt 0:01:26]} gxf4 {[%emt 0:00:31]} 41. Nd2 {[%emt 0:01:21]} Re3+ {[%emt 0:02:59]} 42. Kf1 {[%emt 0:00:11]} Bb4 {[%emt 0:00:53]} 43. Rb2 {[%emt 0:00:23]} Bc3 {[%emt 0:00:51]} 44. Rc2 {[%emt 0:00:23]} Kf5 {[%emt 0:00:34]} 45. Ra2 {[%emt 0:00:09]} g5 {[%emt 0:00:29]} 46. Rc2 {[%emt 0:00:09]} Rd3 {[%emt 0:00:21]} 47. Nb1 {[%emt 0:00:29]} Rd1+ {[%emt 0:01:05]} 48. Ke2 {[%emt 0:00:01]} Re1+ {[%emt 0:00:04]} 49. Kf2 {[%emt 0:00:03]} e3+ {[%emt 0:00:12]} 50. Kf3 {[%emt 0:00:02]} Bb4 {[%emt 0:00:17]} 0-1

[Event "NED Team Cup 2018"]
[Site "Apeldoorn"]
[Date "2018.05.10"]
[Round "2"]
[White "Werf, Mark van der"]
[Black "Monsma, Menno"]
[Result "1/2-1/2"]
[ECO "E44"]
[WhiteElo "2404"]
[BlackElo "2037"]
[Annotator "RC"]
[PlyCount "78"]
[EventDate "2018.??.??"]
[EventCountry "NED"]
[SourceTitle "playchess.com"]
[Source "ChessBase"]
[SourceQuality "1"]
[TimeControl "6600+5"]

1. d4 {[%emt 0:00:00]} Nf6 {[%emt 0:00:10]} 2. c4 {[%emt 0:00:04]} e6 {[%emt 0:00:14]} 3. Nc3 {[%emt 0:00:03]} Bb4 {[%emt 0:00:12]} 4. e3 {[%emt 0:00:04]} b6 {[%emt 0:00:32]} 5. Nge2 {[%emt 0:00:06]} Ne4 {[%emt 0:01:06]} 6. Bd2 {[%emt 0:00:08]} Nxd2 {[%emt 0:02:09]} 7. Qxd2 {[%emt 0:00:07]} d5 {[%emt 0:04:47]} 8. cxd5 {[%emt 0:01:58]} exd5 {[%emt 0:00:11]} 9. a3 {[%emt 0:00:08]} Be7 {[%emt 0:00:16]} 10. Nf4 {[%emt 0:00:42]} c6 {[%emt 0:00:38]} 11. Bd3 {[%emt 0:04:00]} Bb7 {[%emt 0:11:37]} 12. O-O {[%emt 0:00:18]} O-O {[%emt 0:02:56]} 13. b4 {[%emt 0:00:27]} a6 {[%emt 0:00:39]} 14. Rab1 {[%emt 0:04:16]} Nd7 {[%emt 0:04:36]} 15. a4 {[%emt 0:00:18]} Bd6 {[%emt 0:21:31]} 16. a5 {[%emt 0:10:01]} Bxf4 {[%emt 0:01:17]} 17. exf4 {[%emt 0:00:11]} b5 {[%emt 0:00:37]} 18. Ne2 {[%emt 0:07:24]} Nf6 {[%emt 0:00:43]} 19. Ng3 {[%emt 0:01:32]} Ne8 {[%emt 0:03:43]} 20. Rbe1 {[%emt 0:05:45]} Nd6 {[%emt 0:00:42]} 21. f5 {[%emt 0:02:33]} Qh4 {[%emt 0:02:37]} 22. f4 {[%emt 0:00:25]} Rae8 {[%emt 0:00:56]} 23. Re5 {[%emt 0:02:32]} Qd8 {[%emt 0:00:38]} 24. Rfe1 {[%emt 0:11:43]} f6 {[%emt 0:01:34]} 25. Rxe8 {[%emt 0:03:19]} Rxe8 {[%emt 0:00:12]} 26. Qc3 {[%emt 0:03:05]} Rxe1+ {[%emt 0:04:01]} 27. Qxe1 {[%emt 0:00:05]} Bc8 {[%emt 0:00:27]} 28. Kf2 {[%emt 0:02:03]} Kf8 {[%emt 0:02:55]} 29. Qc3 {[%emt 0:02:31]} Nc4 {[%emt 0:01:43]} 30. Ne2 {[%emt 0:02:21]} Qe8 {[%emt 0:03:26]} 31. Bxc4 {[%emt 0:03:14]} bxc4 {[%emt 0:02:54]} 32. g4 {[%emt 0:00:39]} h5 {[%emt 0:02:45]} 33. h3 {[%emt 0:01:16]} hxg4 {[%emt 0:00:55]} 34. hxg4 {[%emt 0:00:07]} Qe4 {[%emt 0:02:53]} 35. Qh3 {[%emt 0:02:59]} Kg8 {[%emt 0:00:15]} 36. Qe3 {[%emt 0:00:33]} Qxe3+ {[%emt 0:01:12]} 37. Kxe3 {[%emt 0:00:06]} g6 {[%emt 0:02:41]} 38. Ng3 {[%emt 0:01:26]} gxf5 {[%emt 0:00:09]} 39. gxf5 {[%emt 0:00:05]} Kg7 {[%emt 0:00:25]} 1/2-1/2

[Event "NED Team Cup 2018"]
[Site "Apeldoorn"]
[Date "2018.05.10"]
[Round "2"]
[White "Braun, Christian"]
[Black "Delft, Merijn van"]
[Result "1/2-1/2"]
[ECO "B50"]
[WhiteElo "2385"]
[BlackElo "2396"]
[Annotator "NA"]
[PlyCount "37"]
[EventDate "2018.??.??"]
[EventCountry "NED"]
[SourceTitle "playchess.com"]
[Source "ChessBase"]
[SourceQuality "1"]
[TimeControl "6600+5"]

1. e4 {[%emt 0:00:27]} c5 {[%emt 0:00:05]} 2. Nf3 {[%emt 0:00:13]} d6 {[%emt 0:00:07]} 3. Nc3 {[%emt 0:00:18]} Nf6 {[%emt 0:00:22]} 4. e5 {[%emt 0:00:05]} dxe5 {[%emt 0:00:22]} 5. Nxe5 {[%emt 0:00:08]} a6 {[%emt 0:00:18]} 6. a4 {[%emt 0:01:47] LiveBook: 62 Games} Qc7 {[%emt 0:01:47]} 7. Qe2 {[%emt 0:01:52]} Nc6 {[%emt 0:08:08]} 8. Nxc6 {[%emt 0:00:58]} Qxc6 {[%emt 0:00:14]} 9. d3 {[%emt 0:00:29]} b6 {[%emt 0:11:07]} 10. Ne4 {[%emt 0:03:24]} Nxe4 {[%emt 0:10:45]} 11. Qxe4 {[%emt 0:00:40]} Bb7 {[%emt 0:00:23]} 12. Qxc6+ {[%emt 0:00:33]} Bxc6 $11 {[%emt 0:00:10]} 13. b3 {[%emt 0:01:20]} e5 {[%emt 0:03:04]} 14. Bb2 {[%emt 0:00:19]} f6 {[%emt 0:01:46]} 15. h4 {[%emt 0:00:26]} h5 {[%emt 0:02:52]} 16. O-O-O {[%emt 0:04:45]} Kf7 {[%emt 0:05:53]} 17. Rg1 {[%emt 0:00:54]} g6 {[%emt 0:06:36]} 18. Kb1 {[%emt 0:01:21]} Bh6 {[%emt 0:03:42]} 19. Bc1 {[%emt 0:00:27]} 1/2-1/2